Workbook

Sheet r
A1: Cuánto cuesta tener inventario????
D2: C&G | F2: WACC | G2: TOTAL %
A3: Inventario promedio: | B3: 2000000 | D3: =SUM(D6:D24) -> 543460 | E3: =D3/B3 -> 0.27173 | F3: 0.115 | G3: =F3+E3 -> 0.38673
G4: =G3*B3 -> 773460
A5: Costos y Gastos: | C5: Mensual | D5: Anual
A6: Alquiler de bodega (m2) | B6: 2000 | C6: =7.5*B6 -> 15000 | D6: =C6*12 -> 180000
A7: Racks | B7: 2500 | C7: =D7/12 -> 1458.333333 | D7: =70*B7/10 -> 17500
A8: Equipo de manejo de materiales | C8: =D8/12 -> 1596.666667 | D8: =(25000+70000+800)/5 -> 19160
A9: Electricidad | C9: 1000 | D9: =C9*12 -> 12000
A10: Plagas | C10: 400 | D10: 4800
A11: Vigilancia | C11: 5000 | D11: 60000
A12: Salarios (incluye cargas) | B12: 10 | C12: =B12*900 -> 9000 | D12: 108000
A13: Back office | C13: 1500 | D13: 18000
A14: Servicios públicos | C14: 300 | D14: 3600
A15: Software | C15: =D15/12 -> 666.6666667 | D15: =40000/5 -> 8000
A16: Equipo móvil | B16: 6 | C16: =D16/12 -> 133.3333333 | D16: =B16*800/3 -> 1600
A17: Materiales | C17: 2000 | D17: =C17*12 -> 24000
A18: Seguros del inventario | B18: 0.0002 | C18: =B18*B3 -> 400 | D18: =C18*12 -> 4800
A19: Obsolescencia | B19: 0.01 | C19: =D19/12 -> 1666.666667 | D19: =B19*B3 -> 20000
A20: Mermas | B20: 0.005 | C20: =D20/12 -> 833.3333333 | D20: =B3*B20 -> 10000
A21: Faltantes | B21: 0.02 | C21: 3333.333333 | D21: =B3*B21 -> 40000
A22: Mantenimientos | C22: 500 | D22: =C22*12 -> 6000
A23: Uniformes | C23: 200 | D23: =C23*12 -> 2400
A24: Subsidio | C24: 300 | D24: =C24*12 -> 3600

Sheet EOQ
A1: Demanda anual | B1: 10000 | D1: Cantidad de compra | E1: Costo anual de pedir | F1: Costo anual de tener | G1: Costo total
A2: Costo unitario | B2: 10 | D2: 1000 | E2: =$B$1/D2*$B$3 -> 5000 | F2: =D2/2*$B$2*$B$4 -> 2000 | G2: =E2+F2 -> 7000
A3: Costo de pedido | B3: 500 | D3: =B6 -> 1581.13883 | E3: =$B$1/D3*$B$3 -> 3162.27766 | F3: =D3/2*$B$2*$B$4 -> 3162.27766 | G3: =E3+F3 -> 6324.55532
A4: Tasa anual por tener inventario | B4: 0.4 | D4: 2000 | E4: =$B$1/D4*$B$3 -> 2500 | F4: =D4/2*$B$2*$B$4 -> 4000 | G4: =E4+F4 -> 6500
D5: 3000 | E5: 1666.666667 | F5: 6000 | G5: 7666.666667
A6: EOQ | B6: =SQRT((2*B3*B1)/(B2*B4)) -> 1581.13883 | D6: 4000 | E6: 1250 | F6: 8000 | G6: 9250
D7: 5000 | E7: 1000 | F7: 10000 | G7: 11000

Sheet Descuento
A1: Demanda (Consumo) anual | B1: 75000
A2: Costo pedido | B2: 20 | D2: Paso 1 | E2: EOQ con descuento | F2: =SQRT((2*B2*B1)/(B7*B3)) -> 6666.666667 | G2: No sirve
A3: Costo tenencia | B3: 0.15
A5: Límite | B5: 10000 | G5: CA_Pedir | H5: CA_tener | I5: CA_Compra | J5: CA_total
A6: Precio 1 | B6: 0.5 | D6: Paso 2 | E6: EOQ sin descuento | F6: =SQRT((2*B2*B1)/(B6*B3)) -> 6324.55532 | G6: =$B$1/F6*$B$2 -> 237.1708245 | H6: =F6/2*$B$6*$B$3 -> 237.1708245 | I6: =$B$1*B6 -> 37500 | J6: =SUM(G6:I6) -> 37974.34165
A7: Precio 2 | B7: 0.45 | E7: Límite | F7: 10000 | G7: =$B$1/F7*$B$2 -> 150 | H7: =F7/2*$B$6*$B$3 -> 375 | I7: =$B$1*B7 -> 33750 | J7: =SUM(G7:I7) -> 34275

Sheet EOQ Bal
A1: Mes | B1: 1 | C1: 2 | D1: 3 | E1: 4 | F1: 5 | G1: 6 | H1: 7 | I1: 8 | J1: 9 | K1: 10 | L1: 11 | M1: 12 | N1: Total anual
A2: Pronósticos de demanda | B2: 335 | C2: 264 | D2: 294 | E2: 304 | F2: 426 | G2: 136 | H2: 310 | I2: 362 | J2: 447 | K2: 208 | L2: 285 | M2: 485 | N2: =SUM(B2:M2) -> 3856
A4: Costo de Pedido | B4: 290
A5: Tasa de tenencia de inventario (mensual) | B5: 0.02 | C5: =B5*12 -> 0.24
A6: Costo unitario | B6: 10
A8: EOQ | B8: =SQRT((2*B4*N2)/(B6*B5*12)) -> 965.3324125
A9: Cobertura EOQ | B9: =B8/N2*12 -> 3.004146512
A11: Ejemplo con opción B: | B11: 1 | C11: 2 | D11: 3 | E11: 4 | F11: 5 | G11: 6 | H11: 7 | I11: 8 | J11: 9 | K11: 10 | L11: 11 | M11: 12 | N11: Total anual
A12: Inventario Inicial | B12: 0 | C12: =B15 -> 558 | D12: =C15 -> 294 | E12: 0 | F12: 562 | G12: 136 | H12: 0 | I12: 809 | J12: 447 | K12: 0 | L12: 770 | M12: 485
A13: Pronóstico | B13: =B2 -> 335 | C13: =C2 -> 264 | D13: 294 | E13: 304 | F13: 426 | G13: 136 | H13: 310 | I13: 362 | J13: 447 | K13: 208 | L13: 285 | M13: 485 | N13: =SUM(B13:M13) -> 3856
A14: Pedido | B14: =SUM(B13:D13) -> 893 | E14: =SUM(E13:G13) -> 866 | H14: =SUM(H13:J13) -> 1119 | K14: =SUM(K13:M13) -> 978 | N14: =SUM(B14:M14) -> 3856
A15: Inventario Final | B15: =B12+B14-B13 -> 558 | C15: =C12+C14-C13 -> 294 | D15: 0 | E15: 562 | F15: 136 | G15: 0 | H15: 809 | I15: 447 | J15: 0 | K15: 770 | L15: 485 | M15: 0 | N15: =SUM(B15:M15) -> 4061
A17: Costo pedido | B17: =COUNTIF(B14:M14,">0")*B4 -> 1160
A18: Costo de Inv | B18: =N15*B6*B5 -> 812.2
A19: Total | B19: =B17+B18 -> 1972.2

Sheet ss
B1: Enero | C1: Febrero | D1: Marzo | E1: Abril | F1: Mayo | G1: Junio | H1: Julio | I1: Agosto | J1: Septiembre | K1: Octubre | L1: Noviembre | M1: Diciembre
A2: Pronóstico | B2: 209 | C2: 138 | D2: 135 | E2: 146 | F2: 96 | G2: 208 | H2: 164 | I2: 125 | J2: 97 | K2: 193 | L2: 157 | M2: 178
A4: Nivel de servicio | B4: 0.9 | E4: MAD | F4: 25
A5: Factor de seguridad | B5: =_xlfn.NORM.S.INV(B4) -> 1.281551566
A6: Error de pronóstico | B6: =1.25*F4 -> 31.25
A7: Tiempo L | B7: 3 | E7: Q | F7: =SUM(B2:D2) -> 482 | G7: comprar para 3 meses
A8: Desv basada en L | B8: =SQRT(B7)*B6 -> 54.12658774
A9: Stock de seguridad | B9: =B5*B8 -> 69.36601325 | C9: =B9*B13 -> 69366.01325
A11: Punto de reorden | B11: =AVERAGE(B2:M2)*B7+B9 -> 530.8660133
A13: Costo unitario | B13: 1000

Sheet Cobertura
